fUSD/lending_fUSD_20260224
["ID","MTS","AMOUNT","RATE_DAILY","PERIOD"]
[406614481,1771974676624,-1000.0,0.00045,30]
[406614482,1771974676633,-1000.0,0.00045,30]
[406614483,1771974676642,-1551.94027575,0.00045,30]
[406614484,1771974676651,-1246.43,0.00045,14]
[406614485,1771974676660,-1871.241499,0.00045,120]
[406614486,1771974676670,-162.0,0.00045,8]
[406614487,1771974676679,-166.45,0.00045,2]
[406614488,1771974676689,-1600.0,0.00045,5]
[406614489,1771974676699,-10000.0,0.00045,120]
[406614490,1771974676708,-2031.0,0.00045,120]
[406614491,1771974676719,-1016.0,0.00045,120]
[406614492,1771974676729,-2055.859,0.00045029,2]
[406614493,1771974676738,-2097.0444,0.00045055,2]
[406614494,1771974676747,-1277.0,0.0004506,2]
[406614495,1771974676757,-1210.0,0.00045063,2]
[406614496,1771974676766,-350.0,0.00045098,2]
[406614497,1771974676775,-154.0,0.000451,120]
[406614498,1771974676784,-432.27,0.00045205,120]
[406614499,1771974676793,-242.64789461,0.00045205,60]
[406614500,1771974676803,-242.64789461,0.00045205,60]
[406614501,1771974676812,-242.64789461,0.00045205,60]
[406614502,1771974676822,-1000.50519834,0.00045205,2]
[406614503,1771974676832,-151.0,0.00045205,60]
[406614504,1771974676842,-500.0,0.00045205,45]
[406614505,1771974676852,-500.0,0.00045205,45]
[406614506,1771974676861,-500.0,0.00045205,45]
[406614507,1771974676871,-500.0,0.00045205,45]
[406614508,1771974676881,-500.0,0.00045205,45]
[406614509,1771974676890,-500.0,0.00045205,45]
[406614510,1771974676899,-1000.0,0.00045205,3]
[406614511,1771974676908,-1000.0,0.00045205,3]
[406614512,1771974676920,-1000.0,0.00045205,3]
[406614513,1771974676930,-1000.0,0.00045205,3]
[406614514,1771974676939,-1000.0,0.00045205,3]
[406614515,1771974676949,-1000.0,0.00045205,3]
[406614516,1771974676960,-1000.0,0.00045205,3]
[406614517,1771974676970,-1000.0,0.00045205,3]
[406614518,1771974676980,-1000.0,0.00045205,3]
[406614519,1771974676990,-1000.0,0.00045205,3]
[406614520,1771974677000,-1000.0,0.00045205,3]
[406614521,1771974677010,-1000.0,0.00045205,3]
[406614522,1771974677020,-1000.0,0.00045205,3]
[406614523,1771974677030,-1000.0,0.00045205,3]
[406614524,1771974677039,-861.646056,0.00045205,3]
[406614525,1771974677049,-893.91,0.00045205,120]
[406614526,1771974677058,-893.91,0.00045205,120]
[406614527,1771974677068,-893.91,0.00045205,120]
[406614528,1771974677078,-893.91,0.00045205,120]
[406614529,1771974677087,-893.91,0.00045205,120]
[406614530,1771974677096,-893.91,0.00045205,120]
[406614531,1771974677105,-893.91,0.00045205,120]
[406614532,1771974677114,-893.91,0.00045205,120]
[406614533,1771974677123,-893.91,0.00045205,120]
[406614534,1771974677133,-893.91,0.00045205,120]
[406614535,1771974677144,-893.91,0.00045205,120]
[406614536,1771974677153,-893.91,0.00045205,120]
[406614537,1771974677163,-893.91,0.00045205,120]
[406614538,1771974677172,-893.91,0.00045205,120]
[406614539,1771974677181,-893.91,0.00045205,120]
[406614540,1771974677191,-893.91,0.00045205,120]
[406614541,1771974677199,-893.91,0.00045205,120]
[406614542,1771974677209,-893.91,0.00045205,120]
[406614543,1771974677217,-893.91,0.00045205,120]
[406614544,1771974677226,-893.91,0.00045205,120]
[406614545,1771974677235,-893.91,0.00045205,120]
[406614546,1771974677244,-893.91,0.00045205,120]
[406614547,1771974677254,-893.91,0.00045205,120]
[406614548,1771974677263,-500.0,0.00045205,120]
[406614549,1771974677273,-500.0,0.00045205,120]
[406614550,1771974677283,-500.0,0.00045205,120]
[406614551,1771974677293,-500.0,0.00045205,120]
[406614552,1771974677304,-500.0,0.00045205,120]
[406614553,1771974677314,-500.0,0.00045205,120]
[406614554,1771974677323,-500.0,0.00045205,120]
[406614555,1771974677333,-500.0,0.00045205,120]
[406614556,1771974677343,-500.0,0.00045205,120]
[406614557,1771974677352,-500.0,0.00045205,120]
[406614558,1771974677361,-500.0,0.00045205,120]
[406614559,1771974677370,-500.0,0.00045205,120]
[406614560,1771974677379,-500.0,0.00045205,120]
[406614561,1771974677389,-500.0,0.00045205,120]
[406614562,1771974677397,-500.0,0.00045205,120]
[406614563,1771974677407,-500.0,0.00045205,120]
[406614564,1771974677416,-500.0,0.00045205,120]
[406614565,1771974677425,-500.0,0.00045205,120]
[406614566,1771974677434,-500.0,0.00045205,120]
[406614567,1771974677443,-506.35812357,0.00045205,120]
[406614568,1771974677453,-150.0,0.00045205,120]
[406614569,1771974677462,-500.0,0.00045205,2]
[406614570,1771974677472,-500.0,0.00045205,2]
[406614571,1771974677481,-500.0,0.00045205,2]
[406614572,1771974677490,-500.0,0.00045205,2]
[406614573,1771974677500,-500.0,0.00045205,2]
[406614574,1771974677509,-500.0,0.00045205,2]
[406614575,1771974677518,-560.91850691,0.00045205,2]
[406614576,1771974677527,-500.0,0.00045205,2]
[406614577,1771974677536,-500.0,0.00045205,2]
[406614578,1771974677545,-500.0,0.00045205,2]
[406614579,1771974677555,-500.0,0.00045205,2]
[406614580,1771974677564,-500.0,0.00045205,2]
[406614581,1771974677573,-500.9,0.00045205,2]
[406614582,1771974677582,-500.0,0.00045205,2]
[406614583,1771974677592,-500.0,0.00045205,2]
[406614584,1771974677601,-500.0,0.00045205,2]
[406614585,1771974677610,-500.0,0.00045205,2]
[406614586,1771974677619,-500.0,0.00045205,2]
[406614587,1771974677629,-500.0,0.00045205,2]
[406614588,1771974677638,-500.0,0.00045205,2]
[406614589,1771974677647,-564.89850446,0.00045205,2]
[406614590,1771974677656,-500.0,0.00045205,2]
[406614591,1771974677666,-500.0,0.00045205,2]
[406614592,1771974677675,-500.0,0.00045205,2]
[406614593,1771974677684,-500.0,0.00045205,2]
[406614594,1771974677694,-500.0,0.00045205,2]
[406614595,1771974677703,-500.0,0.00045205,2]
[406614596,1771974677712,-500.0,0.00045205,2]
[406614597,1771974677721,-500.0,0.00045205,2]
[406614598,1771974677730,-500.0,0.00045205,2]
[406614599,1771974677740,-500.0,0.00045205,2]
[406614600,1771974677750,-500.0,0.00045205,2]
[406614601,1771974677759,-500.0,0.00045205,2]
[406614602,1771974677768,-501.2182853,0.00045205,2]
[406614603,1771974677817,-406.3065217,0.00045205,2]
[406614604,1771974677827,-500.0,0.00045205,2]
[406614605,1771974677837,-500.0,0.00045205,2]
[406614606,1771974677846,-500.0,0.00045205,2]
[406614607,1771974677855,-500.0,0.00045205,2]
[406614608,1771974677864,-500.0,0.00045205,2]
[406614609,1771974677873,-500.0,0.00045205,2]
[406614610,1771974677882,-500.0,0.00045205,2]
[406614611,1771974677891,-364.91695757,0.00045205,2]
[406614612,1771974677900,-2097.0444,0.00045209,2]
[406614613,1771974677910,-2055.859,0.00045212,2]
[406614614,1771974677923,-150.0,0.00045239,30]
[406614615,1771974677932,-150.0,0.00045239,30]
[406614616,1771974677941,-150.0,0.00045239,30]
[406614617,1771974677951,-150.0,0.00045239,30]
[406614618,1771974677962,-150.0,0.00045239,30]
[406614619,1771974677971,-150.0,0.00045239,30]
[406614620,1771974677980,-150.0,0.00045239,30]
[406614621,1771974677990,-150.0,0.00045239,30]
[406614622,1771974677999,-451.75432,0.0004529,120]
[406614623,1771974678009,-451.75433,0.0004529,120]
[406614624,1771974678018,-451.75433,0.0004529,120]
[406614625,1771974678027,-451.75433,0.0004529,120]
[406614626,1771974678036,-451.75433,0.0004529,120]
[406614627,1771974678046,-451.75433,0.0004529,120]
[406614628,1771974678055,-1402.0,0.00045301,16]
[406614629,1771974678065,-2055.859,0.00045395,2]
[406614630,1771974678074,-743.28,0.00045432,8]
[406614631,1771974678083,-100000.0,0.000455,10]
[406614632,1771974678096,-100000.0,0.000455,11]
[406614633,1771974678106,-100000.0,0.000455,12]
[406614634,1771974678115,-5249.14,0.000455,30]
[406614635,1771974678125,-2000.0,0.000455,63]
[406614636,1771974678134,-2000.0,0.000455,63]
[406614637,1771974678143,-561.453951,0.000455,63]
[406614638,1771974678152,-561.453951,0.000455,63]
[406614639,1771974678162,-2000.0,0.0004551,63]
[406614640,1771974678172,-2491.631615,0.0004551,63]
[406614641,1771974678181,-2000.0,0.0004552,63]
[406614642,1771974678190,-2702.536255,0.0004553,63]
[406614643,1771974678199,-972.0,0.00045561,30]
[406614644,1771974678209,-150.0,0.00045573,10]
[406614645,1771974678219,-150.0,0.00045573,10]
[406614646,1771974678228,-2055.859,0.00045578,2]
[406614647,1771974678237,-150.0,0.00045599,2]
[406614648,1771974678246,-216.06711076,0.000456,60]
[406614649,1771974678255,-167.15607918,0.000456,120]
[406614650,1771974678265,-164.01584354,0.000456,120]
[406614651,1771974678275,-184.7789246,0.000456,120]
[406614652,1771974678284,-258.13,0.000456,60]
[406614653,1771974678297,-150.0,0.00045611,120]
[406614654,1771974678306,-150.41557459,0.00045632,2]
[406614655,1771974678316,-150.0,0.00045632,2]
[406614656,1771974678325,-150.0,0.00045632,2]
[406614657,1771974678335,-150.0,0.00045632,2]
[406614658,1771974678344,-150.0,0.00045632,2]
[406614659,1771974678353,-806.93,0.00045632,2]
[406614660,1771974678362,-290.48310649,0.00045634,2]
[406614661,1771974678373,-150.0,0.00045634,2]
[406614662,1771974678382,-685.2863,0.00045665,2]
[406614663,1771974678391,-154.0,0.000457,120]
[406614664,1771974678400,-2000.0,0.000457,64]
[406614665,1771974678409,-300.0,0.000457,30]
[406614666,1771974678419,-285.58,0.000457,30]
[406614667,1771974678428,-500.0,0.000457,120]
[406614668,1771974678437,-500.0,0.000457,120]
[406614669,1771974678446,-350.0,0.00045704,2]
[406614670,1771974678455,-2000.0,0.0004571,64]
[406614671,1771974678464,-152.0,0.0004571,14]
[406614672,1771974678474,-2088.995797,0.0004572,64]
[406614673,1771974678482,-300.0,0.00045731,30]
[406614674,1771974678494,-300.0,0.00045731,30]
[406614675,1771974678505,-150.0,0.00045731,30]
[406614676,1771974678515,-156.34,0.00045732,120]
[406614677,1771974678524,-151.0,0.00045732,30]
[406614678,1771974678533,-151.0,0.00045732,30]
[406614679,1771974678542,-1200.0,0.00045732,30]
[406614680,1771974678551,-200.0,0.00045732,7]
[406614681,1771974678560,-3770.0,0.00045732,30]
[406614682,1771974678570,-2000.0,0.00045732,30]
[406614683,1771974678579,-2000.0,0.00045732,30]
[406614684,1771974678588,-2000.0,0.00045732,30]
[406614685,1771974678597,-2000.0,0.00045732,30]
[406614686,1771974678606,-3092.0,0.00045732,30]
[406614687,1771974678615,-285.54575102,0.00045732,30]
[406614688,1771974678624,-5888.0,0.00045732,30]
[406614689,1771974678633,-5888.0,0.00045732,30]
[406614690,1771974678642,-5888.0,0.00045732,30]
[406614691,1771974678651,-5888.0,0.00045732,30]
[406614692,1771974678660,-2750.0,0.00045732,30]
[406614693,1771974678669,-336.0,0.00045732,30]
[406614694,1771974678679,-672.0,0.00045732,30]
[406614695,1771974678688,-181.68,0.00045732,120]
[406614696,1771974678700,-1500.0,0.00045732,30]
[406614697,1771974678710,-1500.0,0.00045732,30]
[406614698,1771974678719,-1500.0,0.00045732,30]
[406614699,1771974678729,-1500.0,0.00045732,30]
[406614700,1771974678738,-1197.0,0.00045733,120]
[406614701,1771974678748,-302.0,0.00045733,120]
[406614702,1771974678758,-324.0,0.00045733,120]
[406614703,1771974678767,-1510.0,0.00045733,14]
[406614704,1771974678776,-1510.0,0.00045733,14]
[406614705,1771974678785,-1510.0,0.00045733,14]
[406614706,1771974678795,-152.0,0.00045733,14]
[406614707,1771974678803,-1510.0,0.00045733,14]
[406614708,1771974678812,-152.0,0.00045733,14]
[406614709,1771974678822,-152.0,0.00045733,14]
[406614710,1771974678831,-1525.95362182,0.00045733,14]
[406614711,1771974678840,-158.81864172,0.00045733,14]
[406614712,1771974678849,-5525.9798853,0.00045733,30]
[406614713,1771974678859,-4364453.88929543,0.00045733,10]
[406614714,1771974678868,-8856299.70502478,0.00045733,10]
[406614715,1771974678877,-2522037.98943513,0.00045733,10]
[406614716,1771974678886,-10032.04874538,0.00045733,7]
[406614717,1771974678895,-4322720.49523974,0.00045733,10]
[406614718,1771974678905,-421.48619133,0.00045733,2]
[406614719,1771974678915,-1372.01414151,0.00045733,2]
[406614720,1771974678928,-1142.05086243,0.00045733,2]
[406614721,1771974678937,-15044.30755569,0.00045733,2]
[406614722,1771974678946,-11746.63716886,0.00045733,2]
[406614723,1771974678956,-16879.22511902,0.00045733,2]
[406614724,1771974678966,-43133.0339047,0.00045733,15]
[406614725,1771974678975,-3400.383998,0.00045733,2]
[406614726,1771974678984,-578.98196144,0.00045733,5]
[406614727,1771974678994,-640.86423636,0.00045733,6]
[406614728,1771974679007,-1003.74761582,0.00045733,5]
[406614729,1771974679016,-600.0,0.00045733,5]
[406614730,1771974679025,-500.0,0.00045733,5]
[406614731,1771974679034,-1221.0,0.00045733,4]
[406614732,1771974679044,-23340.99553014,0.00045733,2]
[406614733,1771974679054,-19598.32998058,0.00045733,5]
[406614734,1771974679063,-720.6127299,0.00045733,2]
[406614735,1771974679073,-52500.0,0.00045733,2]
[406614736,1771974679082,-500.27818209,0.00045733,2]
[406614737,1771974679101,-173382.07272316,0.00045733,2]
[406614738,1771974679111,-15226.81226159,0.00045733,2]
[406614739,1771974679121,-57937.58999973,0.00045733,2]
[406614740,1771974679130,-12476.03532137,0.00045733,2]
[406614741,1771974679140,-20688.38367766,0.00045733,2]
[406614742,1771974679149,-12885.92817256,0.00045733,2]
[406614743,1771974679160,-187.35270963,0.00045733,2]
[406614744,1771974679169,-5889.70659392,0.00045733,2]
[406614745,1771974679179,-2017.05744807,0.00045733,4]
[406614746,1771974679188,-681.809999,0.00045733,2]
[406614747,1771974679199,-2007.56539932,0.00045733,2]
[406614748,1771974679208,-400000.0,0.00045733,7]
[406614749,1771974679218,-15770.81841747,0.00045733,2]
[406614750,1771974679228,-8300.0,0.00045733,7]
[406614751,1771974679238,-29453.67,0.00045733,15]
[406614752,1771974679248,-100000.0,0.00045733,10]
[406614753,1771974679258,-114799.83,0.00045733,14]
[406614754,1771974679269,-2354.8944391,0.00045733,10]
[406614755,1771974679278,-724.298431,0.00045733,2]
[406614756,1771974679288,-398.59098958,0.00045733,2]
[406614757,1771974679298,-1210.0,0.00045733,2]
[406614758,1771974679308,-716.61566127,0.00045733,2]
[406614759,1771974679318,-355.06467221,0.00045733,2]
[406614760,1771974679328,-2856.20394294,0.00045733,2]
[406614761,1771974679338,-985.52140823,0.00045733,2]
[406614762,1771974679348,-1549.81640054,0.00045733,2]
[406614763,1771974679359,-1049.5951412,0.00045733,2]
[406614764,1771974679369,-154.22768203,0.00045733,2]
[406614765,1771974679379,-1709.79183959,0.00045733,2]
[406614766,1771974679389,-253.94866912,0.00045733,2]
[406614767,1771974679398,-500.0,0.00045733,2]
[406614768,1771974679408,-1285.68535446,0.00045733,2]
[406614769,1771974679419,-1061.67899041,0.00045733,2]
[406614770,1771974679429,-555.7934065,0.00045733,2]
[406614771,1771974679438,-1336.88574851,0.00045733,2]
[406614772,1771974679448,-761.92101401,0.00045733,2]
[406614773,1771974679457,-187.58519036,0.00045733,2]
[406614774,1771974679467,-643.0,0.00045733,2]
[406614775,1771974679478,-989.17938983,0.00045733,2]
[406614776,1771974679488,-584.02238254,0.00045733,2]
[406614777,1771974679501,-178.72484789,0.00045733,2]
[406614778,1771974679512,-550.0,0.00045733,2]
[406614779,1771974679522,-233.19389478,0.00045733,2]
[406614780,1771974679532,-176.97509376,0.00045733,2]
[406614781,1771974679543,-382.30341053,0.00045733,2]
[406614782,1771974679554,-1302.40730144,0.00045733,2]
[406614783,1771974679564,-1052.47160421,0.00045733,2]
[406614784,1771974679573,-674.18030325,0.00045733,2]
[406614785,1771974679583,-638.317203,0.00045733,2]
[406614786,1771974679594,-218.82921888,0.00045733,2]
[406614787,1771974679603,-1086.93348987,0.00045733,2]
[406614788,1771974679615,-348.58518539,0.00045733,2]
[406614789,1771974679625,-1100.0,0.00045733,2]
[406614790,1771974679634,-929.4620913,0.00045733,2]
[406614791,1771974679645,-490.7268312,0.00045733,2]
[406614792,1771974679655,-616.73078387,0.00045733,2]
[406614793,1771974679665,-1617.46915561,0.00045733,2]
[406614794,1771974679675,-558.72771025,0.00045733,2]
[406614795,1771974679686,-1031.00183556,0.00045733,2]
[406614796,1771974679696,-371.74716051,0.00045733,2]
[406614797,1771974679707,-1871.78328892,0.00045733,2]
[406614798,1771974679717,-1139.57465854,0.00045733,2]
[406614799,1771974679727,-410.27258756,0.00045733,2]
[406614800,1771974679737,-206.75916071,0.00045733,2]
[406614801,1771974679747,-879.98360927,0.00045733,2]
[406614802,1771974679757,-288.24987512,0.00045733,2]
[406614803,1771974679767,-2214.65373149,0.00045733,2]
[406614804,1771974679777,-469.47565615,0.00045733,2]
[406614805,1771974679787,-150.0,0.00045733,2]
[406614806,1771974679797,-160.0,0.00045733,2]
[406614807,1771974679808,-203.33840366,0.00045733,2]
[406614808,1771974679818,-757.03962719,0.00045733,2]
[406614809,1771974679829,-1522.54585688,0.00045733,2]
[406614810,1771974679839,-234.64100035,0.00045733,29]
[406614811,1771974679850,-5287.69530746,0.00045733,2]
[406614812,1771974679860,-2502.93550763,0.00045733,2]
[406614813,1771974679870,-2756.07215916,0.00045733,2]
[406614814,1771974679880,-2423.7766731,0.00045733,14]
[406614815,1771974679890,-247.99911443,0.00045733,2]
[406614816,1771974679900,-3485.9044342,0.00045733,2]
[406614817,1771974679909,-2238.71180885,0.00045733,2]
[406614818,1771974679921,-3303.06611529,0.00045733,2]
[406614819,1771974679932,-4911.72355283,0.00045733,2]
[406614820,1771974679942,-2500.0,0.00045733,2]
[406614821,1771974679951,-1339.53544127,0.00045733,2]
[406614822,1771974679963,-2245.66614379,0.00045733,2]
[406614823,1771974679974,-5326.11095742,0.00045733,4]
[406614824,1771974679984,-2485.68040304,0.00045733,2]
[406614825,1771974679996,-269.09052141,0.00045733,28]
[406614826,1771974680007,-610.0,0.00045733,2]
[406614827,1771974680017,-514.24402799,0.00045733,2]
[406614828,1771974680027,-162.02531843,0.00045733,2]
[406614829,1771974680037,-2969.77931277,0.00045733,2]
[406614830,1771974680047,-500.0,0.00045733,14]
[406614831,1771974680057,-500.0,0.00045733,14]
[406614832,1771974680067,-500.0,0.00045733,14]
[406614833,1771974680077,-500.0,0.00045733,14]
[406614834,1771974680086,-500.0,0.00045733,14]
[406614835,1771974680097,-500.0,0.00045733,14]
[406614836,1771974680106,-500.0,0.00045733,14]
[406614837,1771974680116,-500.0,0.00045733,14]
[406614838,1771974680126,-500.0,0.00045733,14]
[406614839,1771974680136,-500.0,0.00045733,14]
[406614840,1771974680146,-500.0,0.00045733,14]
[406614841,1771974680156,-500.0,0.00045733,14]
[406614842,1771974680166,-430.0834688,0.00045733,14]
[406614843,1771974680176,-500.0,0.00045733,2]
[406614844,1771974680186,-500.0,0.00045733,2]
[406614845,1771974680198,-500.0,0.00045733,2]
[406614846,1771974680208,-500.0,0.00045733,2]
[406614847,1771974680218,-500.0,0.00045733,2]
[406614848,1771974680228,-500.0,0.00045733,2]
[406614849,1771974680238,-500.0,0.00045733,5]
[406614850,1771974680248,-500.0,0.00045733,2]
[406614851,1771974680259,-500.0,0.00045733,5]
[406614852,1771974680270,-500.0,0.00045733,2]
[406614853,1771974680281,-500.0,0.00045733,5]
[406614854,1771974680291,-500.0,0.00045733,2]
[406614855,1771974680301,-500.0,0.00045733,5]
[406614856,1771974680311,-464.70218792,0.00045733,2]
[406614857,1771974680321,-500.0,0.00045733,5]
[406614858,1771974680331,-500.0,0.00045733,5]
[406614859,1771974680341,-500.0,0.00045733,5]
[406614860,1771974680353,-500.0,0.00045733,5]
[406614861,1771974680363,-500.0,0.00045733,5]
[406614862,1771974680375,-500.0,0.00045733,5]
[406614863,1771974680386,-500.0,0.00045733,5]
[406614864,1771974680395,-592.74258753,0.00045733,5]
[406614865,1771974680405,-480.87530505,0.00045733,2]
[406614866,1771974680416,-500.0,0.00045733,14]
[406614867,1771974680426,-164.39323002,0.00045733,14]
[406614868,1771974680436,-525.86414944,0.00045733,2]
[406614869,1771974680446,-713.48,0.00045733,2]
[406614870,1771974680456,-713.48,0.00045733,2]
[406614871,1771974680466,-713.48,0.00045733,2]
[406614872,1771974680476,-713.48,0.00045733,2]
[406614873,1771974680487,-713.48,0.00045733,2]
[406614874,1771974680497,-713.48,0.00045733,2]
[406614875,1771974680507,-713.48,0.00045733,2]
[406614876,1771974680517,-713.48,0.00045733,2]
[406614877,1771974680527,-713.48,0.00045733,2]
[406614878,1771974680537,-713.48,0.00045733,2]
[406614879,1771974680547,-713.48,0.00045733,2]
[406614880,1771974680557,-713.48,0.00045733,2]
[406614881,1771974680568,-713.48,0.00045733,2]
[406614882,1771974680578,-713.48,0.00045733,2]
[406614883,1771974680588,-713.48,0.00045733,2]
[406614884,1771974680598,-713.48,0.00045733,2]
[406614885,1771974680608,-713.48,0.00045733,2]
[406614886,1771974680618,-713.48,0.00045733,2]
[406614887,1771974680628,-713.48,0.00045733,2]
[406614888,1771974680637,-713.48,0.00045733,2]
[406614889,1771974680647,-713.48,0.00045733,2]
[406614890,1771974680657,-713.48,0.00045733,2]
[406614891,1771974680667,-713.48,0.00045733,2]
[406614892,1771974680676,-713.6463859,0.00045733,2]
[406614893,1771974680686,-500.0,0.00045733,11]
[406614894,1771974680696,-500.0,0.00045733,11]
[406614895,1771974680707,-500.0,0.00045733,11]
[406614896,1771974680716,-500.0,0.00045733,11]
[406614897,1771974680727,-500.0,0.00045733,11]
[406614898,1771974680736,-500.0,0.00045733,15]
[406614899,1771974680746,-500.0,0.00045733,11]
[406614900,1771974680757,-500.0,0.00045733,15]
[406614901,1771974680767,-582.92894401,0.00045733,11]
[406614902,1771974680777,-613.78758177,0.00045733,15]
[406614903,1771974680787,-500.0,0.00045733,12]
[406614904,1771974680797,-500.0,0.00045733,12]
[406614905,1771974680807,-500.0,0.00045733,12]
[406614906,1771974680817,-500.0,0.00045733,12]
[406614907,1771974680827,-500.0,0.00045733,12]
[406614908,1771974680837,-500.0,0.00045733,12]
[406614909,1771974680847,-500.0,0.00045733,12]
[406614910,1771974680857,-500.0,0.00045733,12]
[406614911,1771974680867,-500.0,0.00045733,12]
[406614912,1771974680878,-500.0,0.00045733,12]
[406614913,1771974680888,-500.0,0.00045733,12]
[406614914,1771974680898,-500.0,0.00045733,12]
[406614915,1771974680908,-500.0,0.00045733,12]
[406614916,1771974680921,-500.0,0.00045733,12]
[406614917,1771974680931,-500.0,0.00045733,12]
[406614918,1771974680942,-515.93019662,0.00045733,12]
[406614919,1771974680958,-500.0,0.00045733,3]
[406614920,1771974680969,-500.0,0.00045733,3]
[406614921,1771974680979,-500.0,0.00045733,3]
[406614922,1771974680988,-500.0,0.00045733,3]
[406614923,1771974681000,-500.0,0.00045733,3]
[406614924,1771974681010,-500.0,0.00045733,3]
[406614925,1771974681020,-500.0,0.00045733,3]
[406614926,1771974681031,-500.0,0.00045733,3]
[406614927,1771974681041,-500.0,0.00045733,3]
[406614928,1771974681052,-500.0,0.00045733,3]
[406614929,1771974681063,-500.0,0.00045733,3]
[406614930,1771974681074,-500.0,0.00045733,3]
[406614931,1771974681084,-500.0,0.00045733,3]
[406614932,1771974681094,-500.0,0.00045733,3]
[406614933,1771974681104,-500.0,0.00045733,3]
[406614934,1771974681116,-500.0,0.00045733,3]
[406614935,1771974681127,-500.0,0.00045733,3]
[406614936,1771974681136,-500.0,0.00045733,3]
[406614937,1771974681147,-500.0,0.00045733,3]
[406614938,1771974681157,-500.0,0.00045733,3]
[406614939,1771974681167,-314.49198752,0.00045733,3]
[406614940,1771974681176,-486.98696101,0.00045733,2]
[406614941,1771974681188,-503.43994859,0.00045733,20]
[406614942,1771974681199,-502.69687709,0.00045733,16]
[406614943,1771974681209,-50000.0,0.00045733,120]
[406614944,1771974681220,-50000.0,0.00045733,30]
[406614945,1771974681233,-30000.0,0.00045733,30]
[406614946,1771974681244,-153.0,0.00045733,14]
[406614947,1771974681384,-1868.0,0.00045734,30]
[406614948,1771974681410,-1140.96707023,0.00045734,30]
[406614949,1771974681420,-151.0,0.00045734,14]
[406614950,1771974681430,-1510.0,0.00045734,14]
[406614951,1771974681439,-151.0,0.00045734,14]
[406614952,1771974681449,-152.0,0.00045734,14]
[406614953,1771974681458,-151.0,0.00045734,14]
[406614954,1771974681468,-221.85667549,0.00045734,14]
[406614955,1771974681477,-152.0,0.00045734,14]
[406614956,1771974681486,-152.0,0.00045734,14]
[406614957,1771974681496,-159.0,0.00045734,14]
[406614958,1771974681506,-159.0,0.00045734,14]
[406614959,1771974681515,-159.0,0.00045734,14]
[406614960,1771974681524,-159.0,0.00045734,14]
[406614961,1771974681534,-166.64332805,0.00045734,14]
[406614962,1771974681543,-2800.840232,0.00045734,15]
[406614963,1771974681552,-200.0,0.00045734,7]
[406614964,1771974681561,-2000.0,0.00045734,7]
[406614965,1771974681570,-1510.0,0.00045734,14]
[406614966,1771974681579,-151.0,0.00045734,14]
[406614967,1771974681588,-151.0,0.00045734,14]
[406614968,1771974681597,-1510.0,0.00045734,14]
[406614969,1771974681606,-153.0,0.00045734,14]
[406614970,1771974681616,-224.9738853,0.00045734,14]
[406614971,1771974681625,-153.0,0.00045734,14]
[406614972,1771974681634,-151.0,0.00045734,14]
[406614973,1771974681643,-1510.0,0.00045734,14]
[406614974,1771974681653,-152.0,0.00045734,14]
[406614975,1771974681662,-153.0,0.00045734,14]
[406614976,1771974681671,-151.0,0.00045734,14]
[406614977,1771974681680,-1510.0,0.00045734,14]
[406614978,1771974681689,-152.0,0.00045734,14]
[406614979,1771974681699,-153.0,0.00045734,14]
[406614980,1771974681709,-151.0,0.00045734,14]